bitfinex/quotes_BTCUSD_20250903
["timestamp","ask_amount","ask_price","bid_price","bid_amount"]
[1756924890594,0.80159759,112080.0,112070.0,0.00114075]
[1756924890793,1.28226315,112080.0,112070.0,0.00114075]
[1756924891675,1.28440315,112080.0,112070.0,0.00114075]
[1756924893553,1.12782315,112080.0,112070.0,0.00114075]
[1756924893753,1.27922315,112080.0,112070.0,0.00114075]
[1756924894585,1.28229315,112080.0,112070.0,0.00114075]
[1756924895761,1.28443315,112080.0,112070.0,0.00114075]
[1756924896782,1.28225315,112080.0,112070.0,0.00114075]
[1756924898066,1.28439315,112080.0,112070.0,0.00114075]
[1756924901058,1.13303315,112080.0,112070.0,0.00114075]
[1756924901290,1.28423315,112080.0,112070.0,0.00114075]
[1756924904328,1.28411315,112080.0,112070.0,0.00114075]
[1756924906090,0.52951396,112080.0,112070.0,0.00114075]
[1756924906297,0.67748396,112080.0,112070.0,0.00114075]
[1756924906489,0.18644396,112080.0,112070.0,0.00114075]
[1756924906728,0.33748396,112080.0,112070.0,0.00114075]
[1756924907158,0.008,112080.0,112070.0,0.17960064]
[1756924907394,0.008,112080.0,112070.0,0.66446694]
[1756924907609,0.008,112080.0,112070.0,0.6622362]
[1756924908569,0.18644396,112080.0,112070.0,0.6622362]
[1756924908791,0.18644396,112080.0,112070.0,0.17960064]
[1756924911000,0.18644396,112080.0,112070.0,0.33060064]
[1756924911601,0.18644396,112080.0,112070.0,0.17960064]
[1756924912500,0.18964396,112080.0,112070.0,0.33052064]
[1756924913796,0.008,112080.0,112070.0,0.8131562]
[1756924914011,0.008,112080.0,112070.0,0.90507219]
[1756924914218,0.008,112080.0,112070.0,0.97367219]
[1756924915003,0.008,112080.0,112070.0,1.00049072]
[1756924915229,0.008,112080.0,112070.0,1.00936779]
[1756924915463,0.006,112080.0,112070.0,1.00936779]
[1756924915699,0.006,112080.0,112070.0,0.88820535]
[1756924915935,0.007,112080.0,112070.0,0.88820535]
[1756924916314,0.007,112080.0,112070.0,1.24967847]
[1756924916456,0.001,112080.0,112070.0,0.88720535]
[1756924916710,0.003,112080.0,112070.0,0.88820535]
[1756924917609,0.003,112080.0,112070.0,1.28820535]
[1756924918824,0.09364885,112100.0,112080.0,0.1784314]
[1756924919064,0.10256945,112100.0,112090.0,0.15307035]
[1756924919301,0.10469945,112100.0,112090.0,0.00223035]
[1756924919539,0.10469945,112100.0,112090.0,0.15307035]
[1756924919790,0.10469945,112100.0,112090.0,0.33149839]
[1756924920041,0.10469945,112100.0,112090.0,0.69074116]
[1756924920304,0.10469945,112100.0,112090.0,0.32926804]
[1756924920305,0.00533,112100.0,112090.0,0.32926804]
[1756924920551,0.18374213,112100.0,112090.0,0.53990116]
[1756924920823,0.18874213,112100.0,112090.0,0.69174116]
[1756924921047,0.18974213,112100.0,112090.0,0.69174116]
[1756924921713,0.18874213,112100.0,112090.0,0.69174116]
[1756924922156,0.18874213,112100.0,112090.0,0.69274116]
[1756924922398,0.18974213,112100.0,112090.0,0.69274116]
[1756924922995,0.0092,112100.0,112090.0,0.69274116]
[1756924923253,0.006,112100.0,112090.0,0.69274116]
[1756924923704,0.006,112100.0,112090.0,1.14613027]
[1756924923914,0.006,112100.0,112090.0,0.78465715]
[1756924924347,0.006,112100.0,112090.0,1.16706909]
[1756924924571,0.006,112100.0,112090.0,1.19388086]
[1756924924787,0.005,112100.0,112090.0,1.19288086]
[1756924925005,0.18158048,112120.0,112110.0,0.17839621]
[1756924925191,0.18158048,112120.0,112110.0,0.69070933]
[1756924925395,0.18371048,112120.0,112110.0,0.32923621]
[1756924925615,0.18371048,112120.0,112110.0,0.69070933]
[1756924926284,0.18379375,112120.0,112110.0,0.69070933]
[1756924926750,0.00541327,112120.0,112110.0,0.69070933]
[1756924926995,0.00641327,112120.0,112110.0,0.78362532]
[1756924927184,0.00428327,112120.0,112110.0,0.78362532]
[1756924927391,0.00108327,112120.0,112110.0,0.78362532]
[1756924928066,0.00108327,112120.0,112110.0,0.78462532]
[1756924928312,0.18346357,112120.0,112110.0,0.78462532]
[1756924928785,0.18666357,112120.0,112110.0,0.78462532]
[1756924929018,0.00508327,112120.0,112110.0,0.78462532]
[1756924929851,0.00508327,112120.0,112110.0,0.79364332]
[1756924930054,0.00508327,112120.0,112110.0,0.66059501]
[1756924930266,0.18651357,112120.0,112110.0,0.81143501]
[1756924930480,0.18856357,112120.0,112110.0,0.81143501]
[1756924931334,0.18856357,112120.0,112110.0,0.78462532]
[1756924931806,0.01018327,112120.0,112110.0,0.78462532]
[1756924932022,0.00813327,112120.0,112110.0,0.78462532]
[1756924932255,0.18651357,112120.0,112110.0,0.63378532]
[1756924932467,0.18856357,112120.0,112110.0,0.78458532]
[1756924932892,0.01018327,112120.0,112110.0,0.78458532]
[1756924933108,0.00508327,112120.0,112110.0,0.78458532]
[1756924933727,0.18346357,112120.0,112110.0,0.78458532]
[1756924933902,0.18651357,112120.0,112110.0,0.81139501]
[1756924934329,0.18651357,112120.0,112110.0,0.78458532]
[1756924934875,0.18651357,112120.0,112110.0,0.63378532]
[1756924935081,0.18856357,112120.0,112110.0,0.78458532]
[1756924938296,0.18856357,112120.0,112110.0,0.4231122]
[1756924938511,0.18856357,112120.0,112110.0,0.24471599]
[1756924938714,0.18856357,112120.0,112110.0,0.78458532]
[1756924943201,0.00508327,112120.0,112110.0,0.78458532]
[1756924944273,0.00508327,112120.0,112110.0,0.4231122]
[1756924944483,0.18346357,112120.0,112110.0,0.78458532]
[1756924944697,0.18346357,112120.0,112110.0,0.60614911]
[1756924944698,0.18856357,112120.0,112110.0,0.60614911]
[1756924944908,0.18856357,112120.0,112110.0,0.78454532]
[1756924947846,0.18856357,112120.0,112110.0,1.18454532]
[1756924948048,0.18856357,112120.0,112110.0,0.78454532]
[1756924948243,0.18856357,112120.0,112110.0,0.2723122]
[1756924948471,0.18856357,112120.0,112110.0,0.78454532]
[1756924951991,0.18856357,112120.0,112110.0,1.18454532]
[1756924953079,0.18856357,112120.0,112110.0,0.78454532]
[1756924954707,0.01018327,112120.0,112110.0,0.78454532]
[1756924954848,0.00813327,112120.0,112110.0,0.78454532]
[1756924955216,0.00508327,112120.0,112110.0,0.78454532]
[1756924956374,0.18346357,112120.0,112110.0,0.78454532]
[1756924957104,0.00508327,112120.0,112110.0,0.78454532]
[1756924957792,0.18346357,112120.0,112110.0,0.78454532]
[1756924958026,0.18651357,112120.0,112110.0,0.78454532]
[1756924958291,0.18856357,112120.0,112110.0,0.78454532]
[1756924958709,0.18856357,112120.0,112110.0,0.60614911]
[1756924958942,0.18856357,112120.0,112110.0,0.78454532]
[1756924959305,0.18856357,112120.0,112110.0,0.09391599]
[1756924959561,0.18856357,112120.0,112110.0,0.78454532]
[1756924959752,0.18856357,112120.0,112110.0,0.24467599]
[1756924959975,0.18856357,112120.0,112110.0,0.78454532]
[1756924961101,0.18856357,112120.0,112110.0,0.51423312]
[1756924961516,0.18856357,112120.0,112110.0,0.36347312]
[1756924961721,0.18856357,112120.0,112110.0,0.69258933]
[1756924961947,0.18856357,112120.0,112110.0,0.51419312]
[1756924962192,0.55003669,112120.0,112110.0,0.002]
[1756924962632,1.40222981,112120.0,112110.0,0.15272]
[1756924963282,1.40222981,112120.0,112110.0,0.002]
[1756924963713,1.42904503,112120.0,112110.0,0.002]
[1756924964376,1.27832503,112120.0,112110.0,0.002]
[1756924964600,1.42904503,112120.0,112110.0,0.002]
[1756924965995,1.45268503,112120.0,112110.0,0.002]
[1756924966203,1.54460102,112120.0,112110.0,0.002]
[1756924970177,0.82165478,112120.0,112110.0,0.002]
[1756924970391,1.54460102,112120.0,112110.0,0.002]
[1756924971067,1.61316102,112120.0,112110.0,0.002]
[1756924971299,1.97463414,112120.0,112110.0,0.002]
[1756924971521,0.17844396,112080.0,112070.0,0.07354631]
[1756924971738,0.54501708,112080.0,112070.0,0.10036576]
[1756924972270,0.54501708,112080.0,112070.0,0.07354631]
[1756924972699,0.17845989,112070.0,112060.0,0.24610153]
[1756924972913,0.17854309,112070.0,112060.0,0.69949064]
[1756924973315,0.17854309,112070.0,112060.0,0.33801752]
[1756924973548,0.18166309,112070.0,112060.0,0.33801752]
[1756924973730,0.18166309,112070.0,112060.0,0.31119599]
[1756924974427,0.18266309,112070.0,112060.0,0.31519599]
[1756924974609,0.18464309,112070.0,112060.0,0.31519599]
[1756924974754,0.18564309,112070.0,112060.0,0.31519599]
[1756924975192,0.18366309,112070.0,112060.0,0.31519599]
[1756924978074,0.18054309,112070.0,112060.0,0.4936718]
[1756924978620,0.18054309,112070.0,112060.0,0.31519599]
[1756924979417,0.18366309,112070.0,112060.0,0.31519599]
[1756924981409,0.18266309,112070.0,112060.0,0.31519599]
[1756924981947,0.18366309,112070.0,112060.0,0.31619599]
[1756924982105,0.18564309,112070.0,112060.0,0.31619599]
[1756924983196,0.18464309,112070.0,112060.0,0.31219599]
[1756924983409,0.18266309,112070.0,112060.0,0.31219599]
[1756924983585,0.18466309,112070.0,112060.0,0.31719599]
[1756924983766,0.18266309,112070.0,112060.0,0.31219599]
[1756924983978,0.18166309,112070.0,112060.0,0.31119599]
[1756924984193,0.18366309,112070.0,112060.0,0.31619599]
[1756924984401,0.18466309,112070.0,112060.0,0.31719599]
[1756924984912,0.18466309,112070.0,112060.0,0.31619599]
[1756924985145,0.18366309,112070.0,112060.0,0.31619599]
[1756924985365,0.18466309,112070.0,112060.0,0.31719599]
[1756924985493,0.18466309,112070.0,112060.0,0.4956718]
[1756924985672,0.18466309,112070.0,112060.0,0.31719599]
[1756924987400,0.18664309,112070.0,112060.0,0.31719599]
[1756924987916,0.18664309,112070.0,112060.0,0.006]
[1756924988143,1.15958009,112070.0,112060.0,0.006]
[1756924988374,0.67736309,112070.0,112060.0,0.006]
[1756924988885,0.70418952,112070.0,112060.0,0.006]
[1756924989508,1.18640652,112070.0,112060.0,0.006]
[1756924991512,1.03568652,112070.0,112060.0,0.006]
[1756924991724,1.18640652,112070.0,112060.0,0.006]
[1756924992774,1.20890652,112070.0,112060.0,0.001]
[1756924993210,1.21090652,112070.0,112060.0,0.006]
[1756924993557,1.06018652,112070.0,112060.0,0.006]
[1756924993772,1.20990652,112070.0,112060.0,0.005]
[1756924994203,1.21090652,112070.0,112060.0,0.006]
[1756924995015,1.06018652,112070.0,112060.0,0.006]
[1756924995239,1.21090652,112070.0,112060.0,0.006]
[1756924996783,1.06018652,112070.0,112060.0,0.006]
[1756924997002,1.21090652,112070.0,112060.0,0.006]
[1756924997843,1.06018652,112070.0,112060.0,0.006]
[1756924998051,1.21090652,112070.0,112060.0,0.006]
[1756924999769,0.55346952,112070.0,112060.0,0.006]
[1756924999977,0.69908952,112070.0,112060.0,0.006]
[1756925000227,0.55155952,112070.0,112060.0,0.006]
[1756925000653,0.52684309,112070.0,112060.0,0.006]
[1756925002825,0.52684309,112070.0,112060.0,0.00823094]
[1756925003026,0.52684309,112070.0,112060.0,0.006]
[1756925005989,0.67752309,112070.0,112060.0,0.006]
[1756925006398,1.15974009,112070.0,112060.0,0.006]
[1756925007904,1.00906009,112070.0,112060.0,0.006]
[1756925008704,0.52684309,112070.0,112060.0,0.006]
[1756925011424,1.00906009,112070.0,112060.0,0.006]
[1756925012541,1.15974009,112070.0,112060.0,0.006]
[1756925015979,1.00906009,112070.0,112060.0,0.006]
[1756925016187,1.15974009,112070.0,112060.0,0.006]
[1756925016803,1.15759009,112070.0,112060.0,0.006]
[1756925016999,1.15970009,112070.0,112060.0,0.006]
[1756925018074,0.52684309,112070.0,112060.0,0.006]
[1756925018291,0.52154309,112070.0,112060.0,0.66669281]
[1756925018492,0.0030832,112070.0,112060.0,0.7586088]
[1756925018696,0.0030832,112070.0,112060.0,1.18543148]
[1756925019109,0.0030832,112070.0,112060.0,0.78543148]
[1756925019327,0.18154309,112070.0,112060.0,0.78543148]
[1756925019534,0.18154309,112070.0,112060.0,1.18543148]
[1756925020161,0.0030832,112070.0,112060.0,1.18543148]
[1756925020339,0.18154309,112070.0,112060.0,1.18543148]
[1756925020552,0.0030832,112070.0,112060.0,1.18543148]
[1756925023028,0.0030832,112070.0,112060.0,1.22517033]
[1756925025392,0.0030832,112070.0,112060.0,1.37577033]
[1756925025601,0.18450309,112070.0,112060.0,0.71507752]
[1756925025807,0.18664309,112070.0,112060.0,0.89355333]
[1756925026653,0.18664309,112070.0,112060.0,0.85381448]
[1756925026882,0.18664309,112070.0,112060.0,0.52473867]
[1756925027134,0.18664309,112070.0,112060.0,0.67533867]
[1756925027545,0.18664309,112070.0,112060.0,0.27533867]
[1756925027759,0.18664309,112070.0,112060.0,0.45381448]
[1756925028777,0.18664309,112070.0,112060.0,0.30321448]
[1756925028999,0.18664309,112070.0,112060.0,0.1566]
[1756925030019,0.18664309,112070.0,112060.0,0.15656]
[1756925030583,0.18664309,112070.0,112060.0,0.006]
[1756925030840,0.18664309,112070.0,112060.0,0.15656]
[1756925031078,0.66886009,112070.0,112060.0,0.006]
[1756925031299,0.66886009,112070.0,112060.0,0.15656]
[1756925031498,0.18664309,112070.0,112060.0,0.15656]
[1756925032980,0.81942009,112070.0,112060.0,0.006]
[1756925033188,1.15942009,112070.0,112060.0,0.006]
[1756925033552,0.70066309,112070.0,112060.0,0.006]
[1756925033770,1.18288009,112070.0,112060.0,0.006]
[1756925034347,1.20970858,112070.0,112060.0,0.006]
[1756925035219,1.20204099,112070.0,112060.0,0.006]
[1756925037509,1.08162407,112070.0,112060.0,0.006]
[1756925037900,0.93106407,112070.0,112060.0,0.006]
[1756925038457,0.69636399,112070.0,112060.0,0.006]
[1756925038663,0.90760407,112070.0,112060.0,0.006]
[1756925038876,1.05816407,112070.0,112060.0,0.006]
[1756925039072,0.90760407,112070.0,112060.0,0.006]
[1756925039288,1.05816407,112070.0,112060.0,0.006]
[1756925039493,0.90760407,112070.0,112060.0,0.006]
[1756925039861,1.05816407,112070.0,112060.0,0.006]
[1756925040457,0.90760407,112070.0,112060.0,0.006]
[1756925040885,0.88077558,112070.0,112060.0,0.006]
[1756925042592,0.88077558,112070.0,112060.0,0.00823094]
[1756925043120,0.88077558,112070.0,112060.0,0.006]
[1756925047232,1.03129558,112070.0,112060.0,0.006]
[1756925047650,0.88077558,112070.0,112060.0,0.006]
[1756925048087,1.03129558,112070.0,112060.0,0.006]
[1756925050808,0.5189755,112070.0,112060.0,0.006]
[1756925051029,1.03129558,112070.0,112060.0,0.006]
[1756925051931,1.03125558,112070.0,112060.0,0.006]
[1756925057573,0.5189755,112070.0,112060.0,0.006]
[1756925057721,0.5138755,112070.0,112060.0,0.006]
[1756925057947,0.1738755,112070.0,112060.0,0.54850683]
[1756925058152,0.1738755,112070.0,112060.0,0.90807597]
[1756925058359,0.20527062,112080.0,112060.0,1.15047196]
[1756925058681,0.20527062,112080.0,112070.0,0.36180008]
[1756925058842,0.20833062,112080.0,112070.0,0.36180008]
[1756925059048,0.17845989,112070.0,112060.0,0.78881057]
[1756925059247,0.17845989,112070.0,112060.0,0.81563222]
[1756925059451,0.17845989,112070.0,112060.0,1.21563222]
[1756925059939,0.17845989,112070.0,112060.0,1.21063222]
[1756925060148,0.17845989,112070.0,112060.0,1.24993284]
[1756925060354,0.17845989,112070.0,112060.0,1.24893284]
[1756925060749,0.17845989,112070.0,112060.0,1.25093284]
[1756925061205,0.18045989,112070.0,112060.0,1.25793284]
[1756925061406,0.18045989,112070.0,112060.0,1.25593284]
[1756925061617,0.18145989,112070.0,112060.0,1.25793284]
[1756925062592,0.003,112070.0,112060.0,1.25793284]
[1756925062799,0.18145989,112070.0,112060.0,1.25793284]
[1756925063365,0.18145989,112070.0,112060.0,1.61973292]
[1756925064942,0.18145989,112070.0,112060.0,1.46925292]
[1756925065144,0.18451989,112070.0,112060.0,1.61969292]
[1756925065472,0.18451989,112070.0,112060.0,1.25789284]
[1756925065682,0.18653989,112070.0,112060.0,0.56717901]
[1756925065909,0.18653989,112070.0,112060.0,1.07941909]
[1756925066215,0.18653989,112070.0,112060.0,1.2578949]
[1756925066432,0.18451989,112070.0,112060.0,1.2578949]
[1756925066839,0.18653989,112070.0,112060.0,1.07941909]
[1756925067071,0.18653989,112070.0,112060.0,1.2578949]
[1756925067760,0.18145989,112070.0,112060.0,1.2578949]
[1756925068145,0.18451989,112070.0,112060.0,1.2578949]
[1756925068353,0.18451989,112070.0,112060.0,0.92897909]
[1756925068607,0.18653989,112070.0,112060.0,1.2578549]
[1756925069515,0.18451989,112070.0,112060.0,1.2578549]
[1756925071559,0.18451989,112070.0,112060.0,0.89605482]
[1756925071763,0.18451989,112070.0,112060.0,1.2578549]
[1756925072511,0.18451989,112070.0,112060.0,0.00914075]
[1756925072512,0.54833997,112070.0,112060.0,0.00914075]
[1756925072739,0.69873997,112070.0,112060.0,0.00914075]
[1756925077047,0.33693989,112070.0,112060.0,0.00914075]
[1756925077281,0.69873997,112070.0,112060.0,0.00914075]
[1756925079050,0.69869997,112070.0,112060.0,0.00914075]
[1756925079670,0.18653989,112070.0,112060.0,0.00914075]
[1756925079872,0.69869997,112070.0,112060.0,0.00914075]
[1756925080307,0.33689989,112070.0,112060.0,0.00914075]
[1756925080578,0.69869997,112070.0,112060.0,0.00914075]
[1756925081534,0.18653989,112070.0,112060.0,0.00914075]
[1756925081751,0.69869997,112070.0,112060.0,0.00914075]
[1756925082360,0.54833997,112070.0,112060.0,0.00914075]
[1756925082584,0.69869997,112070.0,112060.0,0.00914075]
[1756925083129,0.18653989,112070.0,112060.0,0.00914075]
[1756925083360,0.33689989,112070.0,112060.0,0.01137169]
[1756925083570,0.69869997,112070.0,112060.0,0.01137169]
[1756925084664,0.54833997,112070.0,112060.0,0.01137169]
[1756925085661,0.54833997,112070.0,112060.0,0.00914075]
[1756925086852,0.18653989,112070.0,112060.0,0.00914075]
[1756925087011,0.54833997,112070.0,112060.0,0.00914075]
[1756925087796,0.18653989,112070.0,112060.0,0.01137169]
[1756925088001,0.69865997,112070.0,112060.0,0.01137169]
[1756925088615,0.69865997,112070.0,112060.0,0.00914075]
[1756925090338,0.69865997,112070.0,112060.0,0.01137169]
[1756925090754,0.69865997,112070.0,112060.0,0.00914075]
[1756925098253,0.69861997,112070.0,112060.0,0.00914075]
[1756925098964,0.33681989,112070.0,112060.0,0.00914075]
[1756925099216,0.69861997,112070.0,112060.0,0.00914075]
[1756925099382,0.33681989,112070.0,112060.0,0.00914075]
[1756925099609,0.81913196,112070.0,112060.0,0.00914075]
[1756925100575,1.15913196,112070.0,112060.0,0.00914075]
[1756925102281,1.00885196,112070.0,112060.0,0.00914075]
[1756925102495,1.15913196,112070.0,112060.0,0.00914075]
[1756925104699,1.15909196,112070.0,112060.0,0.00914075]
[1756925105972,1.00885196,112070.0,112060.0,0.00914075]
[1756925106229,1.15909196,112070.0,112060.0,0.00914075]
[1756925106798,1.00885196,112070.0,112060.0,0.00914075]
[1756925107012,1.15909196,112070.0,112060.0,0.00914075]
[1756925107948,0.17853954,112020.0,112010.0,0.08019572]
[1756925108170,0.16401409,112020.0,112000.0,0.81112315]
[1756925108424,0.17853954,112020.0,112010.0,0.00223194]
[1756925108644,0.17853954,112020.0,112010.0,0.48454401]
[1756925108838,0.17853954,112020.0,112010.0,0.48231207]
[1756925109278,0.17853954,112020.0,112010.0,0.67002834]
[1756925109688,0.19046518,112030.0,112010.0,0.67002834]
[1756925109906,0.002,112020.0,112010.0,0.18771627]
[1756925110079,0.18743305,112040.0,112020.0,0.17852995]
[1756925110280,0.1785236,112030.0,112020.0,0.17852995]
[1756925110486,0.1785236,112030.0,112020.0,0.4]
[1756925110729,0.1785236,112030.0,112020.0,0.57853954]
[1756925111359,0.1837536,112030.0,112020.0,0.49191599]
[1756925111564,0.1847536,112030.0,112020.0,0.09191599]
[1756925111776,0.1847536,112030.0,112020.0,0.27045553]
[1756925111976,0.1847536,112030.0,112020.0,0.09191599]
[1756925112334,0.1847536,112030.0,112020.0,0.27045553]
[1756925112504,0.1847536,112030.0,112020.0,0.27057911]
[1756925112925,0.1867236,112030.0,112020.0,0.00012358]
[1756925113365,0.1815236,112030.0,112020.0,0.17866312]
[1756925113514,0.1815236,112030.0,112020.0,0.18089486]
[1756925113720,0.003,112030.0,112020.0,0.66320693]
[1756925113933,0.1815236,112030.0,112020.0,0.66097519]
[1756925114937,0.1847536,112030.0,112020.0,0.00012358]
[1756925115153,0.1847536,112030.0,112020.0,0.18089486]
[1756925115338,0.1847536,112030.0,112020.0,0.33113486]
[1756925115538,0.1847536,112030.0,112020.0,0.32890312]
[1756925116336,0.1815236,112030.0,112020.0,0.32890312]
[1756925118606,0.003,112030.0,112020.0,0.90313118]
[1756925118974,0.003,112030.0,112020.0,1.30313118]
[1756925119176,0.003,112030.0,112020.0,1.37177118]
[1756925119426,0.003,112030.0,112020.0,1.39860156]
[1756925119696,0.1847536,112030.0,112020.0,0.91628949]
[1756925119904,0.1867236,112030.0,112020.0,0.69740949]
[1756925120073,0.1867236,112030.0,112020.0,0.55036358]
[1756925120478,0.1867236,112030.0,112020.0,0.72890312]
[1756925121527,0.1867236,112030.0,112020.0,0.57866312]
[1756925121707,0.1867236,112030.0,112020.0,0.72890312]
[1756925121970,0.00623,112030.0,112020.0,0.72890312]
[1756925122185,0.1847536,112030.0,112020.0,1.21121519]
[1756925122387,0.00623,112030.0,112020.0,0.72890312]
[1756925122699,0.1847536,112030.0,112020.0,0.72890312]
[1756925123969,0.00623,112030.0,112020.0,0.72890312]
[1756925124178,0.003,112030.0,112020.0,1.21121519]
[1756925124385,0.00623,112030.0,112020.0,1.21121519]
[1756925124619,0.1847536,112030.0,112020.0,1.21121519]
[1756925124828,0.003,112030.0,112020.0,1.21121519]
[1756925125042,0.00623,112030.0,112020.0,1.21121519]
[1756925125962,0.1847536,112030.0,112020.0,1.21121519]
[1756925126560,0.00623,112030.0,112020.0,1.21121519]
[1756925126769,0.1847536,112030.0,112020.0,1.21121519]
[1756925129326,0.1867236,112030.0,112020.0,1.21121519]
[1756925131340,0.00623,112030.0,112020.0,1.21121519]
[1756925131596,0.003,112030.0,112020.0,1.32407]
[1756925132021,0.003,112030.0,112020.0,1.35089877]
[1756925132222,0.00060823,112030.0,112020.0,1.35089877]
[1756925132625,0.19066079,112050.0,112040.0,0.17850767]
[1756925132626,0.18172174,112050.0,112040.0,0.17850767]
[1756925132844,0.18172174,112050.0,112040.0,0.81325108]
[1756925133047,0.18369174,112050.0,112040.0,0.66081974]
[1756925133284,0.18369174,112050.0,112040.0,0.4]
[1756925133503,0.66600381,112050.0,112040.0,0.55032358]
[1756925133690,0.66600381,112050.0,112040.0,0.15032358]
[1756925133904,0.66800381,112050.0,112040.0,0.15140678]
[1756925134333,0.18569174,112050.0,112040.0,0.15140678]
[1756925134480,0.18569174,112050.0,112040.0,0.00120678]
[1756925134722,0.18569174,112050.0,112040.0,0.15140678]
[1756925135600,0.18669174,112050.0,112040.0,0.15440678]
[1756925135812,0.66900381,112050.0,112040.0,0.15440678]
[1756925136199,0.18669174,112050.0,112040.0,0.15440678]
[1756925137708,0.33689174,112050.0,112040.0,0.15440678]
[1756925139367,0.33689174,112050.0,112040.0,0.00420678]
[1756925139578,0.81920381,112050.0,112040.0,0.00420678]
[1756925139787,1.15920381,112050.0,112040.0,0.00420678]
[1756925141246,0.67689174,112050.0,112040.0,0.00420678]
[1756925141455,1.15920381,112050.0,112040.0,0.00420678]
[1756925142498,0.67689174,112050.0,112040.0,0.00420678]
[1756925142712,1.15920381,112050.0,112040.0,0.00420678]
[1756925143443,0.67689174,112050.0,112040.0,0.00420678]
[1756925143649,1.15920381,112050.0,112040.0,0.00420678]
[1756925144283,0.70160174,112050.0,112040.0,0.00420678]
[1756925144490,1.18391381,112050.0,112040.0,0.00420678]
[1756925145616,0.70160174,112050.0,112040.0,0.00420678]
[1756925145831,1.18391381,112050.0,112040.0,0.00420678]
[1756925148696,0.70160174,112050.0,112040.0,0.00420678]
[1756925148902,1.18391381,112050.0,112040.0,0.00420678]
[1756925150335,1.03371381,112050.0,112040.0,0.00420678]
[1756925150543,1.15916381,112050.0,112040.0,0.00420678]
[1756925150960,0.52669174,112050.0,112040.0,0.00420678]
[1756925151213,0.67685174,112050.0,112040.0,0.00420678]
[1756925151429,1.15916381,112050.0,112040.0,0.00420678]
[1756925153404,1.00900381,112050.0,112040.0,0.00420678]
[1756925153622,0.67685174,112050.0,112040.0,0.00420678]
[1756925153830,1.15916381,112050.0,112040.0,0.00420678]
[1756925154239,1.00900381,112050.0,112040.0,0.00420678]
[1756925154454,0.18149174,112050.0,112040.0,0.66502652]
[1756925154918,0.18149174,112050.0,112040.0,0.18271445]
[1756925155989,0.18149174,112050.0,112040.0,0.66502652]
[1756925156468,0.003,112050.0,112040.0,0.66502652]
[1756925157576,0.18149174,112050.0,112040.0,0.66502652]
[1756925158361,0.18149174,112050.0,112040.0,0.18271445]
[1756925158668,0.18149174,112050.0,112040.0,0.58271445]
[1756925159517,0.18149174,112050.0,112040.0,0.94446884]
[1756925159722,0.18149174,112050.0,112040.0,0.76596117]
[1756925159932,0.18453174,112050.0,112040.0,0.94446884]
[1756925160150,0.18453174,112050.0,112040.0,0.76596117]
[1756925160355,0.18663174,112050.0,112040.0,0.94446884]
[1756925160547,0.18453174,112050.0,112040.0,0.94446884]
[1756925161056,0.18663174,112050.0,112040.0,0.40420678]
[1756925161280,0.54838613,112050.0,112040.0,0.40420678]
[1756925161518,0.54838613,112050.0,112040.0,0.55436678]
[1756925161869,0.18663174,112050.0,112040.0,0.55436678]
[1756925162072,0.54838613,112050.0,112040.0,0.40420678]
[1756925162499,0.54838613,112050.0,112040.0,0.55432678]
[1756925163631,0.54838613,112050.0,112040.0,0.40420678]
[1756925163925,0.54838613,112050.0,112040.0,0.55432678]
[1756925164345,0.54838613,112050.0,112040.0,0.15432678]
[1756925164551,0.18663174,112050.0,112040.0,0.15432678]
[1756925164753,0.18663174,112050.0,112040.0,0.55432678]
[1756925165363,0.18663174,112050.0,112040.0,0.40420678]
[1756925165591,0.18663174,112050.0,112040.0,0.55432678]
[1756925165794,0.18663174,112050.0,112040.0,0.40420678]
[1756925166002,0.18663174,112050.0,112040.0,0.55432678]
[1756925166351,0.54838613,112050.0,112040.0,0.55432678]
[1756925166860,0.18663174,112050.0,112040.0,0.55432678]
[1756925167477,0.18663174,112050.0,112040.0,0.73283445]
[1756925167723,0.18453174,112050.0,112040.0,0.69458884]
[1756925167927,0.18149174,112050.0,112040.0,0.69458884]
[1756925168338,0.18149174,112050.0,112040.0,1.09458884]
[1756925168751,0.18453174,112050.0,112040.0,1.09458884]
[1756925169407,0.18453174,112050.0,112040.0,0.91608117]
[1756925169622,0.18453174,112050.0,112040.0,0.55432678]
[1756925169801,0.18453174,112050.0,112040.0,0.73283445]
[1756925169956,0.18453174,112050.0,112040.0,1.09458884]
[1756925170796,0.18649174,112050.0,112040.0,0.91608117]
[1756925171001,0.18649174,112050.0,112040.0,0.55432678]
[1756925172372,0.18649174,112050.0,112040.0,0.15432678]
[1756925173406,0.54824613,112050.0,112040.0,0.00420678]
[1756925173636,0.54824613,112050.0,112040.0,0.15432678]
[1756925173824,0.54824613,112050.0,112040.0,0.00420678]
[1756925174039,0.88824613,112050.0,112040.0,0.00420678]
[1756925174479,0.52649174,112050.0,112040.0,0.00420678]
[1756925174665,0.88824613,112050.0,112040.0,0.00420678]
[1756925175075,0.67661174,112050.0,112040.0,0.00420678]
[1756925175283,1.03836613,112050.0,112040.0,0.00420678]
[1756925177294,0.52649174,112050.0,112040.0,0.00420678]
[1756925177471,1.03832613,112050.0,112040.0,0.00420678]
[1756925180884,0.88824613,112050.0,112040.0,0.00420678]
[1756925181107,0.67657174,112050.0,112040.0,0.00420678]
[1756925181328,1.03832613,112050.0,112040.0,0.00420678]
[1756925181769,0.52649174,112050.0,112040.0,0.00420678]
[1756925181982,0.18444174,112050.0,112040.0,0.36819251]
[1756925182196,0.18444174,112050.0,112040.0,0.69454884]
[1756925182418,0.18149174,112050.0,112040.0,0.69454884]
[1756925182861,0.003,112050.0,112040.0,1.14821922]
[1756925183158,0.003,112050.0,112040.0,0.78646483]
[1756925183815,0.18649174,112050.0,112040.0,0.78646483]
[1756925184031,0.18649174,112050.0,112040.0,1.18646483]
[1756925184707,0.18649174,112050.0,112040.0,1.21329089]
[1756925184941,0.18444174,112050.0,112040.0,1.21329089]
[1756925185175,0.18149174,112050.0,112040.0,1.21329089]
[1756925185410,0.003,112050.0,112040.0,1.21329089]
[1756925186142,0.003,112050.0,112040.0,1.57504528]
[1756925186772,0.003,112050.0,112040.0,1.42496528]
[1756925187016,0.00595,112050.0,112040.0,1.21329089]
[1756925187233,0.003,112050.0,112040.0,1.21329089]
[1756925187950,0.54824613,112050.0,112040.0,0.58111284]
[1756925188145,0.54824613,112050.0,112040.0,0.18111284]
[1756925188379,0.54824613,112050.0,112040.0,0.15428678]
[1756925188586,0.54824613,112050.0,112040.0,0.00420678]
[1756925189402,0.88824613,112050.0,112040.0,0.00420678]
[1756925191278,0.52649174,112050.0,112040.0,0.00420678]
[1756925191759,0.88824613,112050.0,112040.0,0.00420678]
[1756925197376,0.98016212,112050.0,112040.0,0.00420678]
[1756925197590,1.34191651,112050.0,112040.0,0.00420678]
[1756925199302,0.98016212,112050.0,112040.0,0.00420678]
[1756925199937,1.34191651,112050.0,112040.0,0.00420678]